bitfinex/quotes_BTCUSD_20250604
["timestamp","ask_amount","ask_price","bid_price","bid_amount"]
[1749081074546,0.59002329,104690.0,104680.0,0.43192]
[1749081074967,0.59957502,104690.0,104680.0,0.43192]
[1749081076983,0.59002329,104690.0,104680.0,0.43192]
[1749081077844,0.59957511,104690.0,104680.0,0.43192]
[1749081078105,0.59002383,104690.0,104680.0,0.43192]
[1749081079437,0.58047201,104690.0,104680.0,0.43192]
[1749081079653,0.59002383,104690.0,104680.0,0.43192]
[1749081081431,0.59002374,104690.0,104680.0,0.43192]
[1749081082217,0.59957565,104690.0,104680.0,0.43192]
[1749081082624,0.59002374,104690.0,104680.0,0.43192]
[1749081083249,0.59957556,104690.0,104680.0,0.43192]
[1749081083464,0.59002374,104690.0,104680.0,0.43192]
[1749081083886,0.59957556,104690.0,104680.0,0.43192]
[1749081084100,0.59002374,104690.0,104680.0,0.43192]
[1749081084919,0.59957556,104690.0,104680.0,0.43192]
[1749081087311,0.58047201,104690.0,104680.0,0.43192]
[1749081087543,0.59002383,104690.0,104680.0,0.43192]
[1749081087964,0.03820629,104690.0,104680.0,0.43192]
[1749081088166,0.58047201,104690.0,104680.0,0.43192]
[1749081088595,0.59002383,104690.0,104680.0,0.43192]
[1749081089208,0.59002374,104690.0,104680.0,0.43192]
[1749081093044,0.59957565,104690.0,104680.0,0.43192]
[1749081093183,0.59002374,104690.0,104680.0,0.43192]
[1749081094115,0.59957556,104690.0,104680.0,0.43192]
[1749081095200,0.7810644,104690.0,104680.0,0.43192]
[1749081095422,1.31377884,104690.0,104680.0,0.26138]
[1749081095631,1.34242784,104690.0,104680.0,0.41614]
[1749081097654,0.7906103,104690.0,104680.0,0.43204]
[1749081097859,1.34242784,104690.0,104680.0,0.43204]
[1749081105256,1.34242784,104690.0,104680.0,0.23748]
[1749081105455,1.34242784,104690.0,104680.0,0.43204]
[1749081107829,1.31377884,104690.0,104680.0,0.43204]
[1749081108739,1.13229064,104690.0,104680.0,0.43204]
[1749081108949,1.32333085,104690.0,104680.0,0.43204]
[1749081109901,1.32333085,104690.0,104680.0,0.23748]
[1749081110123,1.32333085,104690.0,104680.0,0.43204]
[1749081110542,0.5804731,104690.0,104680.0,0.43204]
[1749081110975,0.58047182,104690.0,104680.0,0.43204]
[1749081111393,0.59002364,104690.0,104680.0,0.43204]
[1749081111606,0.58047182,104690.0,104680.0,0.43204]
[1749081111812,0.39777762,104690.0,104680.0,0.43204]
[1749081112830,0.40732944,104690.0,104680.0,0.43204]
[1749081113253,0.39777762,104690.0,104680.0,0.43204]
[1749081114860,0.39777771,104690.0,104680.0,0.43204]
[1749081115125,0.39777762,104690.0,104680.0,0.43204]
[1749081115900,0.38822598,104690.0,104680.0,0.43204]
[1749081116394,0.37867462,104690.0,104680.0,0.43204]
[1749081117018,0.36912334,104690.0,104680.0,0.43204]
[1749081119596,0.37867452,104690.0,104680.0,0.43204]
[1749081120667,0.38822589,104690.0,104680.0,0.43204]
[1749081120889,0.39777735,104690.0,104680.0,0.43204]
[1749081121113,0.94959489,104690.0,104680.0,0.43204]
[1749081121339,0.58047155,104690.0,104680.0,0.43204]
[1749081121974,0.57092009,104690.0,104680.0,0.43204]
[1749081122183,0.56136872,104690.0,104680.0,0.43204]
[1749081122636,0.57092,104690.0,104680.0,0.43204]
[1749081122846,0.56136872,104690.0,104680.0,0.43204]
[1749081124272,0.58047191,104690.0,104680.0,0.43204]
[1749081124495,0.58047182,104690.0,104680.0,0.43204]
[1749081124930,0.59002364,104690.0,104680.0,0.27728]
[1749081125155,0.77151322,104690.0,104680.0,0.22158]
[1749081125370,1.31377912,104690.0,104680.0,0.24588]
[1749081125590,1.31377912,104690.0,104680.0,0.4006]
[1749081126218,0.76196158,104690.0,104680.0,0.4006]
[1749081126414,0.01910319,104690.0,104680.0,0.4006]
[1749081126625,0.02865528,104690.0,104680.0,0.4159]
[1749081126832,0.58047282,104690.0,104680.0,0.4159]
[1749081127249,0.77151303,104690.0,104680.0,0.26118]
[1749081127474,0.77151303,104690.0,104680.0,0.4159]
[1749081127703,0.78106504,104690.0,104680.0,0.4159]
[1749081130023,0.59002483,104690.0,104680.0,0.4159]
[1749081130277,0.58047282,104690.0,104680.0,0.4159]
[1749081130499,0.58047282,104690.0,104680.0,0.431]
[1749081130722,0.58047282,104690.0,104680.0,0.27628]
[1749081130941,0.58047282,104690.0,104680.0,0.431]
[1749081131472,0.59002483,104690.0,104680.0,0.431]
[1749081132322,0.58047282,104690.0,104680.0,0.431]
[1749081134361,0.57092055,104690.0,104680.0,0.431]
[1749081134560,0.58047237,104690.0,104680.0,0.431]
[1749081134980,0.57092055,104690.0,104680.0,0.431]
[1749081135190,0.58047237,104690.0,104680.0,0.431]
[1749081135420,0.58047228,104690.0,104680.0,0.431]
[1749081136467,0.57092055,104690.0,104680.0,0.431]
[1749081136743,0.58047237,104690.0,104680.0,0.431]
[1749081138655,0.57092055,104690.0,104680.0,0.431]
[1749081140019,0.55181754,104690.0,104680.0,0.431]
[1749081141353,0.56136872,104690.0,104680.0,0.431]
[1749081141569,0.57092009,104690.0,104680.0,0.431]
[1749081141812,0.56136872,104690.0,104680.0,0.431]
[1749081142026,0.57092009,104690.0,104680.0,0.431]
[1749081143146,0.58047173,104690.0,104680.0,0.431]
[1749081143354,0.57092009,104690.0,104680.0,0.431]
[1749081143565,0.58047173,104690.0,104680.0,0.431]
[1749081145434,0.02865419,104690.0,104680.0,0.431]
[1749081145557,0.58047173,104690.0,104680.0,0.431]
[1749081146347,0.57092009,104690.0,104680.0,0.431]
[1749081146554,0.58047173,104690.0,104680.0,0.431]
[1749081147217,0.57092009,104690.0,104680.0,0.431]
[1749081147426,0.59002337,104690.0,104680.0,0.431]
[1749081147647,0.58047164,104690.0,104680.0,0.431]
[1749081147871,0.59002337,104690.0,104680.0,0.431]
[1749081148111,0.59002328,104690.0,104680.0,0.431]
[1749081149812,0.58047164,104690.0,104680.0,0.431]
[1749081150029,0.59002337,104690.0,104680.0,0.431]
[1749081150242,0.59002328,104690.0,104680.0,0.431]
[1749081150885,0.5995751,104690.0,104680.0,0.431]
[1749081151124,0.59002328,104690.0,104680.0,0.431]
[1749081151663,0.5995751,104690.0,104680.0,0.431]
[1749081155935,0.59002328,104690.0,104680.0,0.431]
[1749081156972,0.58047164,104690.0,104680.0,0.431]
[1749081158516,0.55181754,104690.0,104680.0,0.431]
[1749081160047,0.55181754,104690.0,104680.0,0.4158]
[1749081160278,0.89181754,104690.0,104680.0,0.4158]
[1749081160709,0.89181754,104690.0,104680.0,0.4323]
[1749081162188,0.90136872,104690.0,104680.0,0.4323]
[1749081162288,0.34,104690.0,104680.0,0.4323]
[1749081162528,0.90136872,104690.0,104680.0,0.4323]
[1749081163193,0.91092009,104690.0,104680.0,0.4323]
[1749081165916,0.57092009,104690.0,104680.0,0.4323]
[1749081166148,0.58047155,104690.0,104680.0,0.4323]
[1749081166788,0.59957492,104690.0,104680.0,0.43226]
[1749081166993,0.5900231,104690.0,104680.0,0.43226]
[1749081167197,0.58047155,104690.0,104680.0,0.43226]
[1749081169095,0.60911755,104690.0,104680.0,0.43226]
[1749081169846,0.59956609,104690.0,104680.0,0.43226]
[1749081170776,0.60911755,104690.0,104680.0,0.43226]
[1749081170992,0.59956609,104690.0,104680.0,0.43226]
[1749081173272,0.60911773,104690.0,104680.0,0.43226]
[1749081173677,0.60911764,104690.0,104680.0,0.43226]
[1749081174131,0.61866937,104690.0,104680.0,0.43226]
[1749081174651,0.60911764,104690.0,104680.0,0.43226]
[1749081177827,0.59956609,104690.0,104680.0,0.43226]
[1749081178047,0.60911764,104690.0,104680.0,0.43226]
[1749081178645,0.60911755,104690.0,104680.0,0.43226]
[1749081178838,0.59956609,104690.0,104680.0,0.43226]
[1749081179237,0.028646,104690.0,104680.0,0.43226]
[1749081179459,0.58046354,104690.0,104680.0,0.43226]
[1749081188250,0.55181754,104690.0,104680.0,0.43226]
[1749081188466,0.58046454,104690.0,104680.0,0.43226]
[1749081191441,0.59001582,104690.0,104680.0,0.23778]
[1749081191653,0.59001582,104690.0,104680.0,0.43222]
[1749081193507,0.93001582,104690.0,104680.0,0.43222]
[1749081194177,0.93956728,104690.0,104680.0,0.43222]
[1749081200258,0.93001582,104690.0,104680.0,0.43222]
[1749081200671,0.93956728,104690.0,104680.0,0.43222]
[1749081201097,0.93956719,104690.0,104680.0,0.43222]
[1749081201301,0.93001582,104690.0,104680.0,0.43222]
[1749081201505,0.93956728,104690.0,104680.0,0.43222]
[1749081201714,0.93956719,104690.0,104680.0,0.43222]
[1749081202257,0.93001582,104690.0,104680.0,0.43222]
[1749081202489,0.93001572,104690.0,104680.0,0.43222]
[1749081203085,0.93956709,104690.0,104680.0,0.43222]
[1749081204968,0.93001572,104690.0,104680.0,0.43222]
[1749081205935,0.90136872,104690.0,104680.0,0.43222]
[1749081207766,0.91092009,104690.0,104680.0,0.43222]
[1749081211459,0.92047155,104690.0,104680.0,0.43222]
[1749081211723,0.91092009,104690.0,104680.0,0.43222]
[1749081212479,0.92047155,104690.0,104680.0,0.43222]
[1749081218774,0.94911855,104690.0,104680.0,0.43222]
[1749081219818,0.95867019,104690.0,104680.0,0.43222]
[1749081221403,0.9586701,104690.0,104680.0,0.43222]
[1749081223471,0.94911855,104690.0,104680.0,0.43222]
[1749081223932,0.94911864,104690.0,104680.0,0.43222]
[1749081225190,0.60911864,104690.0,104680.0,0.43222]
[1749081230460,0.59956709,104690.0,104680.0,0.43222]
[1749081231196,0.60911864,104690.0,104680.0,0.43222]
[1749081231606,0.92118864,104690.0,104680.0,0.43222]
[1749081231836,0.93073964,104690.0,104680.0,0.43222]
[1749081232072,0.94029119,104690.0,104680.0,0.43222]
[1749081232856,0.93073964,104690.0,104680.0,0.43222]
[1749081234466,0.9402911,104690.0,104680.0,0.43222]
[1749081234685,0.9402911,104690.0,104680.0,0.43218]
[1749081237130,0.93073964,104690.0,104680.0,0.43218]
[1749081239116,0.92118827,104690.0,104680.0,0.43218]
[1749081239292,0.9402911,104690.0,104680.0,0.43218]
[1749081239494,0.94029101,104690.0,104680.0,0.43218]
[1749081239748,0.37819818,104690.0,104680.0,0.43218]
[1749081239950,0.92046454,104690.0,104680.0,0.43218]
[1749081240386,0.93001572,104690.0,104680.0,0.43218]
[1749081240616,0.93956709,104690.0,104680.0,0.43218]
[1749081240823,0.95867028,104690.0,104680.0,0.43218]
[1749081241061,0.94911855,104690.0,104680.0,0.43218]
[1749081242158,0.9586701,104690.0,104680.0,0.43218]
[1749081242771,0.96822183,104690.0,104680.0,0.43218]
[1749081242973,0.9586701,104690.0,104680.0,0.43218]
[1749081243393,0.96822174,104690.0,104680.0,0.43218]
[1749081243633,0.9586701,104690.0,104680.0,0.43218]
[1749081246576,0.96822174,104690.0,104680.0,0.43218]
[1749081247851,0.9586701,104690.0,104680.0,0.43218]
[1749081248455,0.9586701,104690.0,104680.0,0.27754]
[1749081248656,0.9586701,104690.0,104680.0,0.43218]
[1749081248859,0.96822174,104690.0,104680.0,0.43218]
[1749081249068,1.6919773,104690.0,104680.0,0.24584]
[1749081249240,1.69832575,104690.0,104680.0,0.40048]
[1749081249471,1.68242575,104690.0,104680.0,0.40048]
[1749081251227,1.68242575,104690.0,104680.0,0.24584]
[1749081251442,1.68242575,104690.0,104680.0,0.40048]
[1749081254974,1.68242575,104690.0,104680.0,0.41688]
[1749081255722,1.69197776,104690.0,104680.0,0.41688]
[1749081256417,1.14016022,104690.0,104680.0,0.41688]
[1749081258943,1.14016022,104690.0,104680.0,0.43268]
[1749081260027,0.94912001,104690.0,104680.0,0.43268]
[1749081260965,1.14016022,104690.0,104680.0,0.43268]
[1749081261233,0.94912001,104690.0,104680.0,0.43268]
[1749081261619,1.50093755,104690.0,104680.0,0.43268]
[1749081262874,1.49138554,104690.0,104680.0,0.43268]
[1749081264950,1.49038705,104690.0,104680.0,0.43268]
[1749081265573,1.69097917,104690.0,104680.0,0.27804]
[1749081265786,1.49993896,104690.0,104680.0,0.41688]
[1749081265988,1.49972795,104690.0,104680.0,0.41688]
[1749081266830,1.49932163,104690.0,104680.0,0.41688]
[1749081267034,1.69036184,104690.0,104680.0,0.41688]
[1749081267513,1.48976972,104690.0,104680.0,0.41688]
[1749081268721,1.69036184,104690.0,104680.0,0.41684]
[1749081268982,1.70423037,104690.0,104680.0,0.20608]
[1749081269245,2.37887895,104690.0,104680.0,0.20608]
[1749081269479,2.39924452,104690.0,104680.0,0.2458]
[1749081269777,2.41091838,104690.0,104680.0,0.40044]
[1749081269982,2.41091787,104690.0,104680.0,0.2458]
[1749081270219,2.41091781,104690.0,104680.0,0.2458]
[1749081270457,2.41091781,104690.0,104680.0,0.40044]
[1749081270680,2.40422334,104690.0,104680.0,0.40044]
[1749081270879,2.40422331,104690.0,104680.0,0.40044]
[1749081271142,2.41191744,104690.0,104680.0,0.40044]
[1749081271378,2.41189718,104690.0,104680.0,0.40044]
[1749081271604,2.41089718,104690.0,104680.0,0.40044]
[1749081272064,2.41389718,104690.0,104680.0,0.40044]
[1749081272265,2.41589705,104690.0,104680.0,0.40044]
[1749081273959,2.5017197,104690.0,104680.0,0.40044]
[1749081274183,2.49056889,104690.0,104680.0,0.40044]
[1749081274414,2.50839646,104690.0,104680.0,0.40044]
[1749081274847,2.50838984,104690.0,104680.0,0.40044]
[1749081275053,2.50838749,104690.0,104680.0,0.40044]
[1749081275268,2.5017046,104690.0,104680.0,0.40044]
[1749081275484,2.4838835,104690.0,104680.0,0.40044]
[1749081275704,2.50170567,104690.0,104680.0,0.40044]
[1749081275912,2.49056692,104690.0,104680.0,0.40044]
[1749081276202,2.50838938,104690.0,104680.0,0.40044]
[1749081277252,2.50170377,104690.0,104680.0,0.40044]
[1749081277504,2.50838637,104690.0,104680.0,0.40044]
[1749081278268,2.50838519,104690.0,104680.0,0.40044]
[1749081278684,2.50838138,104690.0,104680.0,0.40044]
[1749081279189,2.50170093,104690.0,104680.0,0.40044]
[1749081279393,2.50838246,104690.0,104680.0,0.40044]
[1749081279605,2.41587102,104690.0,104680.0,0.40044]
[1749081280460,2.4158692,104690.0,104680.0,0.40044]
[1749081280669,2.41586799,104690.0,104680.0,0.40044]
[1749081281098,2.41586674,104690.0,104680.0,0.40044]
[1749081281307,2.41586643,104690.0,104680.0,0.40044]
[1749081281517,2.40918621,104690.0,104680.0,0.40044]
[1749081281751,2.41586643,104690.0,104680.0,0.40044]
[1749081282693,2.41586605,104690.0,104680.0,0.40044]
[1749081282893,2.40918609,104690.0,104680.0,0.40044]
[1749081283108,0.22472458,104670.0,104660.0,0.0159]
[1749081283376,0.210204,104660.0,104650.0,0.03214808]
[1749081283578,1.31383908,104660.0,104650.0,0.43266808]
[1749081284222,1.34249708,104660.0,104650.0,0.43266808]
[1749081284807,1.34149708,104660.0,104650.0,0.43266808]
[1749081285458,1.34149708,104660.0,104650.0,0.43466808]
[1749081285999,1.34149708,104660.0,104650.0,0.43666808]
[1749081287671,1.15995685,104660.0,104650.0,0.43666808]
[1749081287877,1.35105182,104660.0,104650.0,0.43666808]
[1749081288304,2.34371004,104660.0,104650.0,0.26568808]
[1749081288511,1.7918925,104660.0,104650.0,0.43656808]
[1749081288983,1.7918925,104660.0,104650.0,0.43456808]
[1749081289192,1.7918925,104660.0,104650.0,0.43256808]
[1749081289596,1.78333794,104660.0,104650.0,0.43256808]
[1749081289802,1.78333794,104660.0,104650.0,0.43356808]
[1749081304942,1.77858816,104660.0,104650.0,0.42625462]
[1749081313836,1.77858816,104660.0,104650.0,0.42638968]
[1749081320086,1.77858816,104660.0,104650.0,0.23198968]
[1749081320294,1.77858816,104660.0,104650.0,0.42638968]
[1749081323885,0.67495308,104660.0,104650.0,0.42638968]
[1749081324094,1.77858816,104660.0,104650.0,0.42638968]
[1749081348250,2.39788789,104660.0,104650.0,0.24697506]
[1749081348488,2.39549389,104660.0,104650.0,0.24697506]
[1749081348741,0.55024399,104640.0,104630.0,0.0158]
[1749081348973,2.30155091,104640.0,104630.0,0.40056]
[1749081349192,2.30155091,104640.0,104630.0,0.40060808]
[1749081349193,1.74973337,104640.0,104630.0,0.40060808]
[1749081349410,1.77839837,104640.0,104630.0,0.40060808]
[1749081350333,1.80207274,104640.0,104630.0,0.43300808]
[1749081350807,1.80207274,104640.0,104630.0,0.43100808]
[1749081351030,1.80307274,104640.0,104630.0,0.43100808]
[1749081352736,1.81973121,104640.0,104630.0,0.43100808]
[1749081361536,1.80519036,104640.0,104630.0,0.43100808]
[1749081362418,1.80519036,104640.0,104630.0,0.23660808]
[1749081362614,1.80519036,104640.0,104630.0,0.43100808]
[1749081363594,1.80519036,104640.0,104630.0,0.27632808]
[1749081363823,2.37154875,104640.0,104630.0,0.41590808]
[1749081364662,2.37154875,104640.0,104630.0,0.43240808]
[1749081364892,1.81973121,104640.0,104630.0,0.43240808]
[1749081368146,1.60948722,104640.0,104630.0,0.43240808]
[1749081369412,1.81973121,104640.0,104630.0,0.43240808]
[1749081369909,1.81971818,104640.0,104630.0,0.43240808]
[1749081371289,2.37153572,104640.0,104630.0,0.43240808]
[1749081372771,2.37154068,104640.0,104630.0,0.43240808]
[1749081374244,1.81972314,104640.0,104630.0,0.43240808]
[1749081378300,1.83112996,104640.0,104630.0,0.43240808]
[1749081384902,1.81059769,104640.0,104630.0,0.43240808]
[1749081385146,1.83117507,104640.0,104630.0,0.43240808]
[1749081387381,0.94728651,104640.0,104630.0,0.43240808]
[1749081387952,0.56947601,104640.0,104630.0,0.43240808]
[1749081388586,0.56847601,104640.0,104630.0,0.43240808]
[1749081389821,0.56647601,104640.0,104630.0,0.43240808]
[1749081390276,0.56747601,104640.0,104630.0,0.43240808]
[1749081393111,0.59613601,104640.0,104630.0,0.43240808]
[1749081394334,0.04431847,104640.0,104630.0,0.43240808]
[1749081394557,0.06343024,104640.0,104630.0,0.43240808]
[1749081395001,0.61524778,104640.0,104630.0,0.43240808]
[1749081395447,0.62480398,104640.0,104630.0,0.43240808]
[1749081395647,0.61524778,104640.0,104630.0,0.43240808]
[1749081396403,0.62480398,104640.0,104630.0,0.43240808]
[1749081396676,1.36775301,104640.0,104630.0,0.23800808]
[1749081396907,1.69819763,104640.0,104630.0,0.43244808]
[1749081397158,1.80317197,104640.0,104630.0,0.23800808]
[1749081397376,2.35498951,104640.0,104630.0,0.40064808]
[1749081397881,1.80317197,104640.0,104630.0,0.40064808]
[1749081399387,1.80386663,104640.0,104630.0,0.40064808]
[1749081399629,1.80386663,104640.0,104630.0,0.40060808]
[1749081409580,1.80386663,104640.0,104630.0,0.41720808]
[1749081410403,1.80386663,104640.0,104630.0,0.20620808]
[1749081410639,1.80386663,104640.0,104630.0,0.40068808]
[1749081417177,1.80386663,104640.0,104630.0,0.41638808]
[1749081417405,1.61816565,104640.0,104630.0,0.41638808]
[1749081418038,1.64683165,104640.0,104630.0,0.41638808]
[1749081418447,1.64683182,104640.0,104630.0,0.41638808]
[1749081419300,2.19907559,104640.0,104630.0,0.41638808]
[1749081419707,2.21232344,104640.0,104630.0,0.41638808]
[1749081420882,1.66013227,104640.0,104630.0,0.43238808]
[1749081426007,2.21232344,104640.0,104630.0,0.43238808]
[1749081426670,2.21234604,104640.0,104630.0,0.43238808]
[1749081427353,2.22377456,104640.0,104630.0,0.43238808]
[1749081428043,1.67158339,104640.0,104630.0,0.43238808]
[1749081430072,1.67158599,104640.0,104630.0,0.43238808]
[1749081431742,2.22377716,104640.0,104630.0,0.43238808]
[1749081434476,2.22377716,104640.0,104630.0,0.27766808]
[1749081434723,2.22377716,104640.0,104630.0,0.43234808]
[1749081435927,2.23831801,104640.0,104630.0,0.22190808]
[1749081436158,2.28054173,104640.0,104630.0,4.808e-05]
[1749081436395,2.28054173,104640.0,104630.0,0.40068808]
[1749081436396,2.28054203,104640.0,104630.0,0.40068808]
[1749081436633,2.27384335,104640.0,104630.0,0.40068808]
[1749081436862,2.30791046,104640.0,104630.0,0.40068808]
[1749081437140,2.86680023,104640.0,104630.0,0.24600808]
[1749081437365,2.86680023,104640.0,104610.0,0.0311]
[1749081437366,0.56482503,104620.0,104610.0,0.0311]
[1749081437558,2.33782168,104620.0,104610.0,0.43226155]
[1749081438017,2.36649468,104620.0,104610.0,0.43226155]
[1749081438244,2.35506981,104620.0,104610.0,0.43226155]
[1749081438713,1.80287864,104620.0,104610.0,0.43226155]
[1749081440175,1.80287864,104620.0,104610.0,0.43326155]
[1749081440639,1.80287864,104620.0,104610.0,0.27854155]
[1749081440878,1.80287864,104620.0,104610.0,0.43342155]
[1749081443997,2.35506981,104620.0,104610.0,0.43342155]
[1749081449131,2.35505152,104620.0,104610.0,0.43342155]
[1749081451214,2.35505152,104620.0,104610.0,0.43346155]
[1749081452909,2.32637852,104620.0,104610.0,0.43346155]
[1749081453099,2.35505152,104620.0,104610.0,0.43346155]
[1749081459433,2.35505152,104620.0,104610.0,0.43330155]
[1749081460987,2.35505152,104620.0,104610.0,0.27850155]
[1749081461236,2.35505152,104620.0,104610.0,0.43326155]
[1749081461974,2.34051067,104620.0,104610.0,0.43326155]
[1749081462395,2.34051877,104620.0,104610.0,0.43326155]
[1749081464436,2.34051877,104620.0,104610.0,0.27850155]
[1749081464644,2.351936,104620.0,104610.0,0.43322155]
[1749081467980,2.351936,104620.0,104610.0,0.41712155]
[1749081468809,2.351936,104620.0,104610.0,0.43232155]
[1749081470927,2.351936,104620.0,104610.0,0.40212155]
[1749081471795,2.351936,104620.0,104610.0,0.41712155]
[1749081473928,2.351936,104620.0,104610.0,0.26240155]
[1749081474149,2.351936,104620.0,104610.0,0.40212155]
[1749081474368,2.3884093,104620.0,104610.0,0.41107197]
[1749081474588,2.38840937,104620.0,104610.0,0.40212155]
[1749081474802,2.37699215,104620.0,104610.0,0.41107218]
[1749081475018,2.44424369,104620.0,104610.0,0.41111217]
[1749081475229,2.48057356,104620.0,104610.0,0.41111216]
[1749081475436,2.46914432,104620.0,104610.0,0.40212155]
[1749081475645,2.46914432,104620.0,104610.0,0.41107236]
[1749081475870,2.47584335,104620.0,104610.0,0.40212155]
[1749081476085,2.47584341,104620.0,104610.0,0.41107247]
[1749081476303,2.46914432,104620.0,104610.0,0.25635248]
[1749081476538,2.47584341,104620.0,104610.0,0.40112155]
[1749081476723,2.46914432,104620.0,104610.0,0.40112155]
[1749081476971,2.95708395,104620.0,104610.0,0.24640155]
[1749081477193,2.40489278,104620.0,104610.0,0.24640155]
[1749081477408,2.4115916,104620.0,104610.0,0.40116155]
[1749081477639,2.41159158,104620.0,104610.0,0.41011283]
[1749081477890,2.41159168,104620.0,104610.0,0.41011283]
[1749081478103,2.41159168,104620.0,104610.0,0.24640155]
[1749081478292,2.40489278,104620.0,104610.0,0.40112155]
[1749081478640,2.41159165,104620.0,104610.0,0.40112155]
[1749081478843,2.40489278,104620.0,104610.0,0.41007278]
[1749081479292,2.41159165,104620.0,104610.0,0.41007278]
[1749081479707,2.41159165,104620.0,104610.0,0.40112155]
[1749081479908,2.40489278,104620.0,104610.0,0.40112155]
[1749081480341,2.4115916,104620.0,104610.0,0.41007279]
[1749081480575,2.4115916,104620.0,104610.0,0.40112155]
[1749081480787,2.3799916,104620.0,104610.0,0.41007272]
[1749081481573,2.37329278,104620.0,104610.0,0.41007272]
[1749081481787,2.37329278,104620.0,104610.0,0.40112155]
[1749081481991,2.3799798,104620.0,104610.0,0.40112155]
[1749081482798,2.37997863,104620.0,104610.0,0.40112155]
[1749081483272,2.37997652,104620.0,104610.0,0.40112155]
[1749081485092,2.37329278,104620.0,104610.0,0.40112155]
[1749081485746,2.37997564,104620.0,104610.0,0.40112155]
[1749081486646,2.37329278,104620.0,104610.0,0.40112155]
[1749081487126,2.3799749,104620.0,104610.0,0.40112155]
[1749081487344,2.37329278,104620.0,104610.0,0.40112155]
[1749081487561,2.3799749,104620.0,104610.0,0.40112155]
[1749081487771,2.37997477,104620.0,104610.0,0.40112155]
[1749081488193,2.37997472,104620.0,104610.0,0.40112155]
[1749081488578,2.3799756,104620.0,104610.0,0.40112155]
[1749081489780,2.37997555,104620.0,104610.0,0.40112155]
[1749081489994,2.37329278,104620.0,104610.0,0.40112155]
[1749081490190,2.3732865,104620.0,104610.0,0.40112155]
[1749081490826,2.37996926,104620.0,104610.0,0.40112155]
[1749081491388,2.37997268,104620.0,104610.0,0.40112155]
[1749081491827,2.3732865,104620.0,104610.0,0.40112155]
[1749081492481,2.37997267,104620.0,104610.0,0.40112155]
[1749081492971,2.37997267,104620.0,104610.0,0.43242155]
[1749081493185,2.37997268,104620.0,104610.0,0.43242155]
[1749081493407,2.3732865,104620.0,104610.0,0.43242155]
[1749081493621,2.37997384,104620.0,104610.0,0.43242155]
[1749081493838,2.3732865,104620.0,104610.0,0.43242155]
[1749081494289,2.37997384,104620.0,104610.0,0.43242155]
[1749081495219,2.3732865,104620.0,104610.0,0.43242155]
[1749081496315,2.37997384,104620.0,104610.0,0.43242155]
[1749081497074,2.3732865,104620.0,104610.0,0.43242155]
[1749081497287,2.37997474,104620.0,104610.0,0.43242155]
[1749081497504,2.3732865,104620.0,104610.0,0.43242155]
[1749081497925,2.37997474,104620.0,104610.0,0.43242155]
[1749081498886,2.3732865,104620.0,104610.0,0.43242155]
[1749081499085,2.37997467,104620.0,104610.0,0.43242155]
[1749081500456,2.93216584,104620.0,104610.0,0.24640155]
[1749081500685,0.37824291,104590.0,104580.0,0.004]
[1749081500898,1.48262516,104590.0,104580.0,0.40505613]
[1749081501103,1.48262516,104590.0,104580.0,0.43705613]
[1749081501543,1.48262516,104590.0,104580.0,0.44599461]
[1749081502293,1.48362516,104590.0,104580.0,0.45000717]
[1749081502736,1.47406411,104590.0,104580.0,0.45000717]
[1749081502948,1.48462516,104590.0,104580.0,0.44505613]
[1749081503173,1.49376371,104590.0,104580.0,0.45400717]
[1749081503808,1.49376362,104590.0,104580.0,0.45400717]
[1749081504481,1.49875341,104590.0,104580.0,0.45400717]
[1749081504692,0.94656224,104590.0,104580.0,0.44505613]
[1749081504905,0.96568388,104590.0,104580.0,0.45400717]
[1749081505982,0.62568388,104590.0,104580.0,0.44505613]
[1749081506203,0.62568388,104590.0,104580.0,0.45400718]
[1749081506871,0.61612292,104590.0,104580.0,0.45400718]
[1749081507288,0.62568378,104590.0,104580.0,0.45400718]
[1749081507506,0.62568378,104590.0,104580.0,0.44505613]
[1749081507933,0.62568378,104590.0,104580.0,0.45400687]
[1749081508144,0.60656224,104590.0,104580.0,0.44505613]
[1749081508377,0.61612301,104590.0,104580.0,0.45400693]
[1749081508588,0.62568397,104590.0,104580.0,0.45400693]
[1749081508794,0.61612301,104590.0,104580.0,0.45400693]
[1749081509411,0.61612301,104590.0,104580.0,0.45400698]
[1749081509638,0.61612301,104590.0,104580.0,0.44505613]
[1749081509852,0.61612301,104590.0,104580.0,0.45400698]
[1749081510070,0.61612301,104590.0,104580.0,0.44505613]
[1749081510318,0.61612301,104590.0,104580.0,0.45400698]
[1749081510551,0.60656233,104590.0,104580.0,0.44505613]
[1749081510782,0.60656233,104590.0,104580.0,0.45400698]
[1749081511013,1.34997701,104590.0,104580.0,0.25956698]
[1749081511264,1.68997701,104590.0,104580.0,0.29928784]
[1749081511496,1.71865601,104590.0,104580.0,0.45400815]
[1749081511734,1.71865601,104590.0,104580.0,0.4540083]
[1749081512194,1.71865601,104590.0,104580.0,0.24661613]
[1749081512195,1.72721706,104590.0,104580.0,0.24661613]
[1749081512413,1.72721706,104590.0,104580.0,0.45400821]
[1749081512414,1.53699355,104590.0,104580.0,0.45400821]
[1749081512635,1.54655469,104590.0,104580.0,0.44505613]
[1749081512870,1.54555469,104590.0,104580.0,0.45000812]
[1749081513334,1.73577756,104590.0,104580.0,0.44600807]
[1749081513764,1.54555469,104590.0,104580.0,0.45000807]
[1749081513982,1.73577756,104590.0,104580.0,0.44600807]
[1749081514200,1.73677756,104590.0,104580.0,0.45000807]
[1749081514438,1.73677756,104590.0,104580.0,0.44105613]
[1749081514647,1.54555469,104590.0,104580.0,0.44105613]
[1749081514879,1.54555469,104590.0,104580.0,0.45000217]
[1749081515106,1.73677756,104590.0,104580.0,0.45000217]
[1749081515557,1.53599355,104590.0,104580.0,0.45000217]
[1749081515771,0.43161121,104590.0,104580.0,0.45000217]
[1749081516019,1.53599355,104590.0,104580.0,0.45000217]
[1749081516236,1.52643259,104590.0,104580.0,0.44105613]
[1749081516447,1.50731455,104590.0,104580.0,0.45000035]
[1749081516670,1.69853742,104590.0,104580.0,0.45000033]
[1749081516918,1.69853742,104590.0,104580.0,0.29528033]
[1749081517142,1.69853742,104590.0,104580.0,0.45000033]
[1749081517143,1.68897701,104590.0,104580.0,0.45000033]
[1749081517587,1.71765501,104590.0,104580.0,0.45000033]
[1749081518105,1.71765361,104590.0,104580.0,0.44105613]
[1749081518312,1.71765361,104590.0,104580.0,0.45000034]
[1749081518525,1.71765361,104590.0,104580.0,0.44999938]
[1749081518767,1.71765361,104590.0,104580.0,0.44105613]
[1749081518976,1.71765361,104590.0,104580.0,0.44999913]
[1749081519400,1.70809293,104590.0,104580.0,0.44999913]
[1749081521408,1.70809293,104590.0,104580.0,0.44999843]
[1749081522044,1.70809293,104590.0,104580.0,0.44105613]